[Event "Titled Tuesday Blitz June 07 Early 2022"]
[White "Volkov, Maksim"]
[Black "Jobava, Baadur"]
[WhiteFideId "54123070"]
[BlackFideId "13601520"]
[WhiteElo "2155"]
[BlackElo "2617"]
[Result "1-0"]
[Round "02"]
[TimeControl "180+1"]
[Date "2022.06.07"]
[WhiteClock "0:00:11"]
[BlackClock "0:00:02"]

1. d4 {[%clk 0:03:00]}  c6 {[%clk 0:03:00]} 2. c4 {[%clk 0:03:01]}  d5 {[%clk 0:03:01]} 3. Nf3 {[%clk 0:03:01]}  Nf6 {[%clk 0:03:01]} 4. g3 {[%clk 0:03:02]}  dxc4 {[%clk 0:03:00]} 5. Bg2 {[%clk 0:02:57]}  Bf5 {[%clk 0:03:00]} 6. Ne5 {[%clk 0:02:50]}  Nbd7 {[%clk 0:02:59]} 7. Nxc4 {[%clk 0:02:50]}  e6 {[%clk 0:02:58]} 8. O-O {[%clk 0:02:50]}  Be7 {[%clk 0:02:58]} 9. Nc3 {[%clk 0:02:49]}  O-O {[%clk 0:02:57]} 10. e4 {[%clk 0:02:41]}  Bg6 {[%clk 0:02:57]} 11. e5 {[%clk 0:02:38]}  Nd5 {[%clk 0:02:57]} 12. Ne4 {[%clk 0:02:39]}  N7b6 {[%clk 0:02:50]} 13. Ncd6 {[%clk 0:02:38]}  Qc7 {[%clk 0:02:47]} 14. Bg5 {[%clk 0:02:32]}  Bxe4 {[%clk 0:02:46]} 15. Nxe4 {[%clk 0:02:28]}  Rad8 {[%clk 0:02:44]} 16. Bxe7 {[%clk 0:02:27]}  Qxe7 {[%clk 0:02:45]} 17. Rc1 {[%clk 0:02:25]}  Qb4 {[%clk 0:02:41]} 18. Qd2 {[%clk 0:02:13]}  Qxd2 {[%clk 0:02:40]} 19. Nxd2 {[%clk 0:02:14]}  Nb4 {[%clk 0:02:41]} 20. Nb3 {[%clk 0:02:14]}  Rd7 {[%clk 0:02:21]} 21. Rfd1 {[%clk 0:02:08]}  Rfd8 {[%clk 0:02:20]} 22. a3 {[%clk 0:02:07]}  Na6 {[%clk 0:02:20]} 23. Bf1 {[%clk 0:02:05]}  Nb8 {[%clk 0:02:18]} 24. Rd2 {[%clk 0:02:03]}  Kf8 {[%clk 0:02:16]} 25. Rcd1 {[%clk 0:02:03]}  Ke7 {[%clk 0:02:15]} 26. Nc5 {[%clk 0:02:03]}  Rc7 {[%clk 0:02:15]} 27. f4 {[%clk 0:02:01]}  N8d7 {[%clk 0:02:14]} 28. Ne4 {[%clk 0:02:00]}  Nd5 {[%clk 0:02:14]} 29. Kf2 {[%clk 0:02:00]}  a5 {[%clk 0:02:14]} 30. Rc1 {[%clk 0:01:59]}  f5 {[%clk 0:02:13]} 31. Nd6 {[%clk 0:01:56]}  N7b6 {[%clk 0:02:12]} 32. h3 {[%clk 0:01:54]}  h6 {[%clk 0:02:08]} 33. Kf3 {[%clk 0:01:54]}  g5 {[%clk 0:02:08]} 34. Rdc2 {[%clk 0:01:41]}  a4 {[%clk 0:02:06]} 35. Bd3 {[%clk 0:01:38]}  Rxd6 {[%clk 0:02:05]} 36. exd6+ {[%clk 0:01:38]}  Kxd6 {[%clk 0:02:06]} 37. Re2 {[%clk 0:01:37]}  Rg7 {[%clk 0:01:56]} 38. Rce1 {[%clk 0:01:36]}  Nc7 {[%clk 0:01:56]} 39. fxg5 {[%clk 0:01:30]}  hxg5 {[%clk 0:01:56]} 40. g4 {[%clk 0:01:30]}  fxg4+ {[%clk 0:01:55]} 41. Kxg4 {[%clk 0:01:29]}  Nbd5 {[%clk 0:01:56]} 42. Re5 {[%clk 0:01:28]}  Nf6+ {[%clk 0:01:56]} 43. Kg3 {[%clk 0:01:25]}  Nfd5 {[%clk 0:01:52]} 44. Kg4 {[%clk 0:01:25]}  Nf6+ {[%clk 0:01:50]} 45. Kg3 {[%clk 0:01:26]}  Nd7 {[%clk 0:01:46]} 46. R5e2 {[%clk 0:01:23]}  c5 {[%clk 0:01:40]} 47. dxc5+ {[%clk 0:01:20]}  Nxc5 {[%clk 0:01:41]} 48. Bc4 {[%clk 0:01:20]}  b5 {[%clk 0:01:40]} 49. Ba2 {[%clk 0:01:20]}  Nd5 {[%clk 0:01:32]} 50. Rd1 {[%clk 0:01:15]}  Rd7 {[%clk 0:01:19]} 51. Kg4 {[%clk 0:01:13]}  Kc6 {[%clk 0:01:19]} 52. Kxg5 {[%clk 0:01:10]}  Rg7+ {[%clk 0:01:18]} 53. Kh4 {[%clk 0:01:08]}  Nf4 {[%clk 0:01:16]} 54. Rf2 {[%clk 0:00:58]}  e5 {[%clk 0:01:14]} 55. Rf3 {[%clk 0:00:52]}  Nd7 {[%clk 0:00:43]} 56. Rdf1 {[%clk 0:00:42]}  Nf8 {[%clk 0:00:38]} 57. Bb1 {[%clk 0:00:39]}  N8e6 {[%clk 0:00:35]} 58. Bf5 {[%clk 0:00:35]}  Nd4 {[%clk 0:00:27]} 59. Be4+ {[%clk 0:00:34]}  Kc5 {[%clk 0:00:26]} 60. Rxf4 {[%clk 0:00:34]}  exf4 {[%clk 0:00:27]} 61. Rxf4 {[%clk 0:00:34]}  Rg1 {[%clk 0:00:26]} 62. Rg4 {[%clk 0:00:31]}  Re1 {[%clk 0:00:25]} 63. Kg5 {[%clk 0:00:31]}  Re2 {[%clk 0:00:25]} 64. h4 {[%clk 0:00:26]}  Rxb2 {[%clk 0:00:25]} 65. h5 {[%clk 0:00:27]}  Rh2 {[%clk 0:00:25]} 66. h6 {[%clk 0:00:26]}  Ne6+ {[%clk 0:00:24]} 67. Kg6 {[%clk 0:00:26]}  Nf8+ {[%clk 0:00:24]} 68. Kg7 {[%clk 0:00:27]}  Ne6+ {[%clk 0:00:24]} 69. Kg6 {[%clk 0:00:27]}  Kd6 {[%clk 0:00:23]} 70. h7 {[%clk 0:00:26]}  Ke5 {[%clk 0:00:23]} 71. Bb1 {[%clk 0:00:22]}  Rh1 {[%clk 0:00:22]} 72. Bd3 {[%clk 0:00:20]}  Rh3 {[%clk 0:00:21]} 73. Bxb5 {[%clk 0:00:19]}  Nf8+ {[%clk 0:00:21]} 74. Kg7 {[%clk 0:00:20]}  Nxh7 {[%clk 0:00:21]} 75. Rxa4 {[%clk 0:00:20]}  Nf6 {[%clk 0:00:20]} 76. Ra5 {[%clk 0:00:19]}  Nh5+ {[%clk 0:00:16]} 77. Kg6 {[%clk 0:00:19]}  Nf4+ {[%clk 0:00:15]} 78. Kf7 {[%clk 0:00:19]}  Rh7+ {[%clk 0:00:14]} 79. Kg8 {[%clk 0:00:19]}  Rc7 {[%clk 0:00:14]} 80. Bf1+ {[%clk 0:00:19]}  Kf6 {[%clk 0:00:14]} 81. Ra6+ {[%clk 0:00:19]}  Ne6 {[%clk 0:00:14]} 82. Bh3 {[%clk 0:00:16]}  Rc8+ {[%clk 0:00:09]} 83. Kh7 {[%clk 0:00:16]}  Re8 {[%clk 0:00:07]} 84. a4 {[%clk 0:00:17]}  Kf7 {[%clk 0:00:02]} 85. Bg4 {[%clk 0:00:11]} 1-0


[Site "https://www.chess.com"]

[Event "Titled Tuesday Blitz June 07 Early 2022"]
[White "Xiong, Jeffery"]
[Black "Taboas Rodriguez, Daniel"]
[WhiteFideId "2047640"]
[BlackFideId "2208466"]
[WhiteElo "2714"]
[BlackElo "2429"]
[Result "1-0"]
[Round "02"]
[TimeControl "180+1"]
[Date "2022.06.07"]
[WhiteClock "0:00:03"]
[BlackClock "0:00:02"]

1. d4 {[%clk 0:03:00]}  Nf6 {[%clk 0:02:59]} 2. Nf3 {[%clk 0:03:00]}  g6 {[%clk 0:02:59]} 3. Nbd2 {[%clk 0:03:00]}  d5 {[%clk 0:02:59]} 4. b3 {[%clk 0:03:00]}  Bg7 {[%clk 0:02:59]} 5. Bb2 {[%clk 0:03:01]}  O-O {[%clk 0:03:00]} 6. e3 {[%clk 0:03:01]}  Bf5 {[%clk 0:02:58]} 7. Be2 {[%clk 0:03:00]}  Ne4 {[%clk 0:02:51]} 8. Nxe4 {[%clk 0:02:58]}  Bxe4 {[%clk 0:02:52]} 9. O-O {[%clk 0:02:57]}  c6 {[%clk 0:02:52]} 10. c4 {[%clk 0:02:57]}  Nd7 {[%clk 0:02:52]} 11. Rc1 {[%clk 0:02:51]}  Re8 {[%clk 0:02:50]} 12. Nd2 {[%clk 0:02:46]}  Bf5 {[%clk 0:02:50]} 13. f4 {[%clk 0:02:47]}  Nf6 {[%clk 0:02:48]} 14. Nf3 {[%clk 0:02:43]}  Ne4 {[%clk 0:02:47]} 15. Ne5 {[%clk 0:02:43]}  f6 {[%clk 0:02:46]} 16. Nd3 {[%clk 0:02:42]}  Qd7 {[%clk 0:02:42]} 17. g4 {[%clk 0:02:42]}  Be6 {[%clk 0:02:42]} 18. Bf3 {[%clk 0:02:42]}  Rad8 {[%clk 0:02:36]} 19. Qe2 {[%clk 0:02:25]}  b6 {[%clk 0:02:34]} 20. Qg2 {[%clk 0:02:24]}  f5 {[%clk 0:02:30]} 21. g5 {[%clk 0:02:23]}  c5 {[%clk 0:02:14]} 22. cxd5 {[%clk 0:02:20]}  Bxd5 {[%clk 0:02:13]} 23. dxc5 {[%clk 0:02:20]}  Bxb2 {[%clk 0:02:05]} 24. Qxb2 {[%clk 0:02:21]}  Nxc5 {[%clk 0:01:59]} 25. Nxc5 {[%clk 0:02:17]}  bxc5 {[%clk 0:02:00]} 26. Rfd1 {[%clk 0:02:07]}  Qc6 {[%clk 0:01:50]} 27. Be2 {[%clk 0:01:56]}  e6 {[%clk 0:01:39]} 28. Qe5 {[%clk 0:01:55]}  Rc8 {[%clk 0:01:37]} 29. Kf2 {[%clk 0:01:52]}  Qc7 {[%clk 0:01:34]} 30. Qb2 {[%clk 0:01:37]}  Ba8 {[%clk 0:01:25]} 31. h4 {[%clk 0:01:06]}  Qc6 {[%clk 0:01:23]} 32. Rg1 {[%clk 0:01:06]}  e5 {[%clk 0:00:58]} 33. Rg3 {[%clk 0:00:54]}  Qd6 {[%clk 0:00:40]} 34. Bc4+ {[%clk 0:00:51]}  Kf8 {[%clk 0:00:40]} 35. h5 {[%clk 0:00:47]}  Rcd8 {[%clk 0:00:40]} 36. hxg6 {[%clk 0:00:47]}  hxg6 {[%clk 0:00:39]} 37. Ke2 {[%clk 0:00:28]}  Bd5 {[%clk 0:00:31]} 38. Rh3 {[%clk 0:00:28]}  Bxc4+ {[%clk 0:00:30]} 39. bxc4 {[%clk 0:00:29]}  Qd3+ {[%clk 0:00:30]} 40. Ke1 {[%clk 0:00:30]}  Kg7 {[%clk 0:00:19]} 41. fxe5 {[%clk 0:00:26]}  Re6 {[%clk 0:00:18]} 42. Qh2 {[%clk 0:00:26]}  Rh8 {[%clk 0:00:10]} 43. Rd1 {[%clk 0:00:11]}  Qxe3+ {[%clk 0:00:06]} 44. Rxe3 {[%clk 0:00:10]}  Rxh2 {[%clk 0:00:07]} 45. Rd7+ {[%clk 0:00:11]}  Kf8 {[%clk 0:00:07]} 46. Kf1 {[%clk 0:00:11]}  Rxa2 {[%clk 0:00:06]} 47. Rh3 {[%clk 0:00:10]}  Re7 {[%clk 0:00:04]} 48. Rd8+ {[%clk 0:00:08]}  Kg7 {[%clk 0:00:04]} 49. Rdh8 {[%clk 0:00:09]}  Kf7 {[%clk 0:00:05]} 50. Rc8 {[%clk 0:00:02]}  Rxe5 {[%clk 0:00:03]} 51. Rh7+ {[%clk 0:00:02]}  Ke6 {[%clk 0:00:02]} 52. Rc6# {[%clk 0:00:03]} 1-0


[Site "https://www.chess.com"]

[Event "Titled Tuesday Blitz June 07 Early 2022"]
[White "Xu, Yi"]
[Black "Turzo, Attila"]
[WhiteFideId "8605564"]
[BlackFideId "704954"]
[WhiteElo "2471"]
[BlackElo "2561"]
[Result "1-0"]
[Round "02"]
[TimeControl "180+1"]
[Date "2022.06.07"]
[WhiteClock "0:00:14"]
[BlackClock "0:00:04"]

1. e4 {[%clk 0:03:00]}  c5 {[%clk 0:02:59]} 2. Nf3 {[%clk 0:03:01]}  d6 {[%clk 0:02:59]} 3. d4 {[%clk 0:03:00]}  cxd4 {[%clk 0:02:59]} 4. Nxd4 {[%clk 0:03:00]}  Nf6 {[%clk 0:02:59]} 5. Nc3 {[%clk 0:02:59]}  a6 {[%clk 0:02:59]} 6. Be3 {[%clk 0:02:58]}  e5 {[%clk 0:02:55]} 7. Nb3 {[%clk 0:02:58]}  Be7 {[%clk 0:02:55]} 8. f3 {[%clk 0:02:58]}  Be6 {[%clk 0:02:55]} 9. Qd2 {[%clk 0:02:56]}  h5 {[%clk 0:02:55]} 10. O-O-O {[%clk 0:02:55]}  Nbd7 {[%clk 0:02:53]} 11. Nd5 {[%clk 0:02:54]}  Bxd5 {[%clk 0:02:41]} 12. exd5 {[%clk 0:02:54]}  a5 {[%clk 0:02:41]} 13. a4 {[%clk 0:02:52]}  Qc7 {[%clk 0:02:36]} 14. Bb5 {[%clk 0:02:50]}  O-O {[%clk 0:02:35]} 15. Qf2 {[%clk 0:02:37]}  Rac8 {[%clk 0:02:23]} 16. Kb1 {[%clk 0:02:34]}  b6 {[%clk 0:02:15]} 17. h3 {[%clk 0:02:22]}  Nc5 {[%clk 0:02:02]} 18. g4 {[%clk 0:02:16]}  h4 {[%clk 0:01:01]} 19. g5 {[%clk 0:01:50]}  Nh5 {[%clk 0:00:57]} 20. Nxc5 {[%clk 0:01:50]}  dxc5 {[%clk 0:00:49]} 21. Qxh4 {[%clk 0:01:50]}  g6 {[%clk 0:00:48]} 22. Rhe1 {[%clk 0:01:23]}  Bd6 {[%clk 0:00:48]} 23. Bc1 {[%clk 0:01:16]}  Rcd8 {[%clk 0:00:47]} 24. Qe4 {[%clk 0:01:11]}  Qb8 {[%clk 0:00:32]} 25. b3 {[%clk 0:01:10]}  Ng3 {[%clk 0:00:23]} 26. Qg4 {[%clk 0:01:05]}  Nf5 {[%clk 0:00:21]} 27. h4 {[%clk 0:01:02]}  Ng7 {[%clk 0:00:20]} 28. Bb2 {[%clk 0:00:59]}  Rc8 {[%clk 0:00:19]} 29. Qe4 {[%clk 0:00:58]}  Rc7 {[%clk 0:00:18]} 30. Bxe5 {[%clk 0:00:49]}  Rd8 {[%clk 0:00:18]} 31. Bf6 {[%clk 0:00:36]}  Rf8 {[%clk 0:00:14]} 32. Qc4 {[%clk 0:00:33]}  Nh5 {[%clk 0:00:12]} 33. Bb2 {[%clk 0:00:32]}  Bg3 {[%clk 0:00:10]} 34. Qc3 {[%clk 0:00:30]}  f6 {[%clk 0:00:09]} 35. Re6 {[%clk 0:00:28]}  Be5 {[%clk 0:00:07]} 36. Rxe5 {[%clk 0:00:28]}  fxe5 {[%clk 0:00:08]} 37. d6 {[%clk 0:00:16]}  Ra7 {[%clk 0:00:06]} 38. Bc4+ {[%clk 0:00:17]}  Kh7 {[%clk 0:00:05]} 39. Qxe5 {[%clk 0:00:17]}  Ng7 {[%clk 0:00:05]} 40. h5 {[%clk 0:00:14]}  Qe8 {[%clk 0:00:05]} 41. Qxe8 {[%clk 0:00:13]}  Rxe8 {[%clk 0:00:05]} 42. Bd3 {[%clk 0:00:14]}  Nxh5 {[%clk 0:00:05]} 43. Rh1 {[%clk 0:00:14]}  Kg8 {[%clk 0:00:04]} 44. Bxg6 {[%clk 0:00:14]}  Ng3 {[%clk 0:00:04]} 45. Rh8# {[%clk 0:00:14]} 1-0


[Site "https://www.chess.com"]

[Event "Titled Tuesday Blitz June 07 Early 2022"]
[White "Aitbayev, Aslan"]
[Black "Dushyant Sharma"]
[WhiteFideId "13704613"]
[BlackFideId "25065130"]
[WhiteElo "2385"]
[BlackElo "2105"]
[Result "1-0"]
[Round "03"]
[TimeControl "180+1"]
[Date "2022.06.08"]
[WhiteClock "0:00:11"]
[BlackClock "0:00:03"]

1. e4 {[%clk 0:02:58]}  d5 {[%clk 0:03:00]} 2. exd5 {[%clk 0:02:58]}  Nf6 {[%clk 0:03:00]} 3. d4 {[%clk 0:02:56]}  Bg4 {[%clk 0:03:01]} 4. f3 {[%clk 0:02:51]}  Bf5 {[%clk 0:03:01]} 5. c4 {[%clk 0:02:48]}  e6 {[%clk 0:03:01]} 6. dxe6 {[%clk 0:02:47]}  Nc6 {[%clk 0:02:58]} 7. Be3 {[%clk 0:02:32]}  Bb4+ {[%clk 0:02:52]} 8. Nc3 {[%clk 0:02:29]}  O-O {[%clk 0:02:52]} 9. Ne2 {[%clk 0:02:08]}  Re8 {[%clk 0:02:49]} 10. d5 {[%clk 0:02:03]}  Ne5 {[%clk 0:02:43]} 11. Nd4 {[%clk 0:01:58]}  fxe6 {[%clk 0:02:37]} 12. Be2 {[%clk 0:01:46]}  Qc8 {[%clk 0:01:20]} 13. g4 {[%clk 0:01:31]}  c5 {[%clk 0:00:55]} 14. dxc6 {[%clk 0:01:20]}  Bg6 {[%clk 0:00:51]} 15. cxb7 {[%clk 0:01:17]}  Qxb7 {[%clk 0:00:52]} 16. O-O {[%clk 0:01:13]}  Rad8 {[%clk 0:00:39]} 17. Qb3 {[%clk 0:01:05]}  Qe7 {[%clk 0:00:20]} 18. Rad1 {[%clk 0:00:55]}  Bc5 {[%clk 0:00:20]} 19. Na4 {[%clk 0:00:48]}  Rb8 {[%clk 0:00:20]} 20. Qc3 {[%clk 0:00:46]}  Bb4 {[%clk 0:00:20]} 21. Qc1 {[%clk 0:00:45]}  Red8 {[%clk 0:00:18]} 22. a3 {[%clk 0:00:42]}  Ba5 {[%clk 0:00:18]} 23. b4 {[%clk 0:00:41]}  Bc7 {[%clk 0:00:17]} 24. Nc5 {[%clk 0:00:40]}  Bf7 {[%clk 0:00:15]} 25. h3 {[%clk 0:00:37]}  Qe8 {[%clk 0:00:15]} 26. f4 {[%clk 0:00:36]}  Ng6 {[%clk 0:00:15]} 27. Bf3 {[%clk 0:00:32]}  e5 {[%clk 0:00:14]} 28. Nf5 {[%clk 0:00:19]}  exf4 {[%clk 0:00:11]} 29. Bf2 {[%clk 0:00:19]}  h5 {[%clk 0:00:10]} 30. Rde1 {[%clk 0:00:18]}  Ne5 {[%clk 0:00:10]} 31. Bd4 {[%clk 0:00:13]}  Rxd4 {[%clk 0:00:06]} 32. Nxd4 {[%clk 0:00:12]}  hxg4 {[%clk 0:00:07]} 33. hxg4 {[%clk 0:00:13]}  Rd8 {[%clk 0:00:07]} 34. Nf5 {[%clk 0:00:12]}  Qf8 {[%clk 0:00:05]} 35. Nb7 {[%clk 0:00:12]}  Rb8 {[%clk 0:00:03]} 36. c5 {[%clk 0:00:11]}  Bc4 {[%clk 0:00:03]} 37. Nbd6 {[%clk 0:00:10]}  Bxd6 {[%clk 0:00:03]} 38. Nxd6 {[%clk 0:00:10]}  Bxf1 {[%clk 0:00:04]} 39. Rxe5 {[%clk 0:00:10]}  Ba6 {[%clk 0:00:03]} 40. Qxf4 {[%clk 0:00:11]}  Qe7 {[%clk 0:00:03]} 41. Rxe7 {[%clk 0:00:11]} 1-0


[Site "https://www.chess.com"]

[Event "Titled Tuesday Blitz June 07 Early 2022"]
[White "Ansh M Shah"]
[Black "Tisaj, Domen"]
[WhiteFideId "25033379"]
[BlackFideId "14628708"]
[WhiteElo "1819"]
[BlackElo "2326"]
[Result "1-0"]
[Round "03"]
[TimeControl "180+1"]
[Date "2022.06.08"]
[WhiteClock "0:00:06"]
[BlackClock "0:00:10"]

1. d4 {[%clk 0:03:00]}  d5 {[%clk 0:02:59]} 2. c4 {[%clk 0:03:01]}  e6 {[%clk 0:02:59]} 3. Nf3 {[%clk 0:03:01]}  Nf6 {[%clk 0:02:59]} 4. g3 {[%clk 0:03:01]}  dxc4 {[%clk 0:02:58]} 5. Bg2 {[%clk 0:03:01]}  c6 {[%clk 0:02:59]} 6. O-O {[%clk 0:03:02]}  b5 {[%clk 0:02:55]} 7. a4 {[%clk 0:03:02]}  a6 {[%clk 0:02:47]} 8. Ne5 {[%clk 0:02:50]}  Bb7 {[%clk 0:02:45]} 9. Nc3 {[%clk 0:02:50]}  Be7 {[%clk 0:02:30]} 10. axb5 {[%clk 0:02:46]}  axb5 {[%clk 0:02:30]} 11. Rxa8 {[%clk 0:02:46]}  Bxa8 {[%clk 0:02:30]} 12. Nxb5 {[%clk 0:02:46]}  cxb5 {[%clk 0:02:30]} 13. Bxa8 {[%clk 0:02:46]}  O-O {[%clk 0:02:30]} 14. Bg2 {[%clk 0:02:44]}  Qb6 {[%clk 0:02:27]} 15. e3 {[%clk 0:02:43]}  Nd5 {[%clk 0:02:22]} 16. Bd2 {[%clk 0:02:41]}  Rc8 {[%clk 0:02:10]} 17. Qg4 {[%clk 0:02:19]}  Nf6 {[%clk 0:01:56]} 18. Qf3 {[%clk 0:02:12]}  b4 {[%clk 0:01:45]} 19. Rc1 {[%clk 0:01:59]}  c3 {[%clk 0:01:23]} 20. bxc3 {[%clk 0:01:57]}  bxc3 {[%clk 0:01:24]} 21. Rxc3 {[%clk 0:01:57]}  Rxc3 {[%clk 0:01:21]} 22. Bxc3 {[%clk 0:01:58]}  Nbd7 {[%clk 0:01:18]} 23. Nxd7 {[%clk 0:01:42]}  Nxd7 {[%clk 0:01:18]} 24. d5 {[%clk 0:01:37]}  Qb1+ {[%clk 0:01:02]} 25. Bf1 {[%clk 0:01:36]}  exd5 {[%clk 0:01:02]} 26. Qxd5 {[%clk 0:01:35]}  Nf8 {[%clk 0:01:01]} 27. Kg2 {[%clk 0:01:12]}  Qb8 {[%clk 0:00:51]} 28. Bc4 {[%clk 0:01:09]}  Ne6 {[%clk 0:00:50]} 29. Qe4 {[%clk 0:01:05]}  Qc8 {[%clk 0:00:47]} 30. Qg4 {[%clk 0:00:26]}  g6 {[%clk 0:00:45]} 31. Bxe6 {[%clk 0:00:25]}  Qxc3 {[%clk 0:00:39]} 32. Bd5 {[%clk 0:00:24]}  Qf6 {[%clk 0:00:36]} 33. Qc4 {[%clk 0:00:23]}  Kg7 {[%clk 0:00:36]} 34. h4 {[%clk 0:00:22]}  h5 {[%clk 0:00:36]} 35. Be4 {[%clk 0:00:20]}  Bd6 {[%clk 0:00:28]} 36. Qd5 {[%clk 0:00:18]}  Be5 {[%clk 0:00:27]} 37. Bd3 {[%clk 0:00:16]}  Bd6 {[%clk 0:00:26]} 38. Bc4 {[%clk 0:00:17]}  Be5 {[%clk 0:00:26]} 39. Qe4 {[%clk 0:00:12]}  Bd6 {[%clk 0:00:25]} 40. Qd5 {[%clk 0:00:10]}  Be5 {[%clk 0:00:25]} 41. Qb7 {[%clk 0:00:09]}  Bd6 {[%clk 0:00:23]} 42. Qd7 {[%clk 0:00:10]}  Be5 {[%clk 0:00:16]} 43. Bd5 {[%clk 0:00:10]}  Bd6 {[%clk 0:00:15]} 44. Bxf7 {[%clk 0:00:09]}  Qxf7 {[%clk 0:00:06]} 45. Qxd6 {[%clk 0:00:09]}  Qb7+ {[%clk 0:00:07]} 46. Kh2 {[%clk 0:00:08]}  Qf3 {[%clk 0:00:07]} 47. Qf4 {[%clk 0:00:08]}  Qe2 {[%clk 0:00:07]} 48. Kg1 {[%clk 0:00:08]}  Kh7 {[%clk 0:00:08]} 49. Kg2 {[%clk 0:00:08]}  Qd1 {[%clk 0:00:08]} 50. Qf3 {[%clk 0:00:09]}  Qd2 {[%clk 0:00:08]} 51. Qe4 {[%clk 0:00:09]}  Qe2 {[%clk 0:00:08]} 52. Qd4 {[%clk 0:00:09]}  Qe1 {[%clk 0:00:06]} 53. e4 {[%clk 0:00:09]}  Qe2 {[%clk 0:00:06]} 54. Qe3 {[%clk 0:00:09]}  Qc4 {[%clk 0:00:04]} 55. e5 {[%clk 0:00:10]}  Qd5+ {[%clk 0:00:04]} 56. Kh2 {[%clk 0:00:10]}  Qe6 {[%clk 0:00:04]} 57. Qf4 {[%clk 0:00:10]}  Kg7 {[%clk 0:00:03]} 58. Qf6+ {[%clk 0:00:09]}  Qxf6 {[%clk 0:00:04]} 59. exf6+ {[%clk 0:00:10]}  Kxf6 {[%clk 0:00:05]} 60. Kg2 {[%clk 0:00:11]}  Kf5 {[%clk 0:00:05]} 61. Kf3 {[%clk 0:00:12]}  Ke5 {[%clk 0:00:05]} 62. Ke3 {[%clk 0:00:12]}  Kf5 {[%clk 0:00:06]} 63. f3 {[%clk 0:00:13]}  Ke5 {[%clk 0:00:06]} 64. Kd3 {[%clk 0:00:08]}  Kd5 {[%clk 0:00:06]} 65. f4 {[%clk 0:00:07]}  Ke6 {[%clk 0:00:05]} 66. Ke4 {[%clk 0:00:06]}  Kf6 {[%clk 0:00:05]} 67. Kf3 {[%clk 0:00:03]}  Kf5 {[%clk 0:00:06]} 68. Ke3 {[%clk 0:00:04]}  Kg4 {[%clk 0:00:05]} 69. Kf2 {[%clk 0:00:03]}  Kh3 {[%clk 0:00:06]} 70. Kf3 {[%clk 0:00:03]}  Kh2 {[%clk 0:00:06]} 71. g4 {[%clk 0:00:04]}  Kh3 {[%clk 0:00:06]} 72. gxh5 {[%clk 0:00:04]}  gxh5 {[%clk 0:00:07]} 73. f5 {[%clk 0:00:05]}  Kxh4 {[%clk 0:00:08]} 74. f6 {[%clk 0:00:06]}  Kh3 {[%clk 0:00:08]} 75. f7 {[%clk 0:00:07]}  h4 {[%clk 0:00:09]} 76. f8=Q {[%clk 0:00:07]}  Kh2 {[%clk 0:00:09]} 77. Qg7 {[%clk 0:00:06]}  Kh1 {[%clk 0:00:10]} 78. Qg2# {[%clk 0:00:06]} 1-0


[Site "https://www.chess.com"]

[Event "Titled Tuesday Blitz June 07 Early 2022"]
[White "Babazada, Khazar"]
[Black "Florescu, Codrut-Constantin"]
[WhiteFideId "13413554"]
[BlackFideId "1202200"]
[WhiteElo "2406"]
[BlackElo "2191"]
[Result "1-0"]
[Round "03"]
[TimeControl "180+1"]
[Date "2022.06.07"]
[WhiteClock "0:01:08"]
[BlackClock "0:00:37"]

1. e4 {[%clk 0:03:00]}  c5 {[%clk 0:02:59]} 2. Nf3 {[%clk 0:03:00]}  e6 {[%clk 0:02:59]} 3. d4 {[%clk 0:03:01]}  cxd4 {[%clk 0:03:00]} 4. Nxd4 {[%clk 0:03:01]}  a6 {[%clk 0:03:00]} 5. Bd3 {[%clk 0:03:00]}  Qc7 {[%clk 0:03:00]} 6. O-O {[%clk 0:02:59]}  Nf6 {[%clk 0:03:00]} 7. Qe2 {[%clk 0:02:57]}  d6 {[%clk 0:02:59]} 8. c4 {[%clk 0:02:56]}  b6 {[%clk 0:02:59]} 9. b3 {[%clk 0:02:56]}  Bb7 {[%clk 0:02:59]} 10. Bb2 {[%clk 0:02:56]}  Nbd7 {[%clk 0:02:59]} 11. Nc3 {[%clk 0:02:55]}  Be7 {[%clk 0:02:57]} 12. Kh1 {[%clk 0:02:54]}  h5 {[%clk 0:02:56]} 13. f4 {[%clk 0:02:54]}  g6 {[%clk 0:02:55]} 14. Nf3 {[%clk 0:02:50]}  Nc5 {[%clk 0:02:53]} 15. Bc2 {[%clk 0:02:51]}  Ncd7 {[%clk 0:02:46]} 16. Rae1 {[%clk 0:02:49]}  O-O-O {[%clk 0:02:42]} 17. a4 {[%clk 0:02:37]}  h4 {[%clk 0:02:40]} 18. Ng5 {[%clk 0:02:27]}  Rdf8 {[%clk 0:02:34]} 19. Nh3 {[%clk 0:02:24]}  Kb8 {[%clk 0:02:19]} 20. e5 {[%clk 0:01:39]}  dxe5 {[%clk 0:02:15]} 21. fxe5 {[%clk 0:01:40]}  Nh5 {[%clk 0:02:10]} 22. Be4 {[%clk 0:01:40]}  Nc5 {[%clk 0:02:01]} 23. Bxb7 {[%clk 0:01:38]}  Qxb7 {[%clk 0:02:00]} 24. b4 {[%clk 0:01:38]}  Nd7 {[%clk 0:01:48]} 25. c5 {[%clk 0:01:27]}  bxc5 {[%clk 0:01:33]} 26. bxc5 {[%clk 0:01:26]}  Ka8 {[%clk 0:01:29]} 27. Ne4 {[%clk 0:01:10]}  Nxc5 {[%clk 0:01:22]} 28. Nd6 {[%clk 0:01:09]}  Bxd6 {[%clk 0:01:07]} 29. exd6 {[%clk 0:01:10]}  Rhg8 {[%clk 0:01:05]} 30. Ba3 {[%clk 0:01:10]}  Nd7 {[%clk 0:00:59]} 31. Rb1 {[%clk 0:01:09]}  Qc6 {[%clk 0:00:42]} 32. Rfc1 {[%clk 0:01:08]}  Qd5 {[%clk 0:00:37]} 1-0


[Site "https://www.chess.com"]